[Event "Titled Tuesday Blitz August 09 Late 2022"]
[White "Claverie, Christophe"]
[Black "Csonka, Balazs"]
[WhiteFideId "605514"]
[BlackFideId "742910"]
[WhiteElo "2300"]
[BlackElo "2404"]
[Result "1-0"]
[Round "11"]
[TimeControl "180+1"]
[Date "2022.08.09"]
[WhiteClock "0:01:41"]
[BlackClock "0:00:01"]

1. d4 {[%clk 0:03:00]}  Nf6 {[%clk 0:02:59]} 2. Bg5 {[%clk 0:02:58]}  Ne4 {[%clk 0:02:54]} 3. Bf4 {[%clk 0:02:58]}  d5 {[%clk 0:02:54]} 4. f3 {[%clk 0:02:58]}  Nf6 {[%clk 0:02:53]} 5. Nc3 {[%clk 0:02:59]}  e6 {[%clk 0:02:38]} 6. e4 {[%clk 0:02:58]}  Bb4 {[%clk 0:02:38]} 7. Qd3 {[%clk 0:02:55]}  O-O {[%clk 0:02:30]} 8. a3 {[%clk 0:02:52]}  Bxc3+ {[%clk 0:02:21]} 9. bxc3 {[%clk 0:02:45]}  Nc6 {[%clk 0:01:31]} 10. e5 {[%clk 0:02:43]}  Nd7 {[%clk 0:01:29]} 11. Bc1 {[%clk 0:02:41]}  f5 {[%clk 0:00:47]} 12. h4 {[%clk 0:02:39]}  Na5 {[%clk 0:00:41]} 13. Bg5 {[%clk 0:02:36]}  Qe8 {[%clk 0:00:41]} 14. h5 {[%clk 0:02:36]}  h6 {[%clk 0:00:35]} 15. Bc1 {[%clk 0:02:36]}  b6 {[%clk 0:00:32]} 16. Ne2 {[%clk 0:02:35]}  Nc4 {[%clk 0:00:31]} 17. Nf4 {[%clk 0:02:34]}  Ba6 {[%clk 0:00:27]} 18. g4 {[%clk 0:02:33]}  fxg4 {[%clk 0:00:15]} 19. fxg4 {[%clk 0:02:25]}  c5 {[%clk 0:00:14]} 20. Qg3 {[%clk 0:02:19]}  cxd4 {[%clk 0:00:13]} 21. cxd4 {[%clk 0:02:18]}  Rc8 {[%clk 0:00:07]} 22. Bd3 {[%clk 0:02:18]}  Bb5 {[%clk 0:00:04]} 23. g5 {[%clk 0:02:18]}  hxg5 {[%clk 0:00:03]} 24. Qxg5 {[%clk 0:02:18]}  Qf7 {[%clk 0:00:03]} 25. h6 {[%clk 0:02:17]}  Ncxe5 {[%clk 0:00:03]} 26. dxe5 {[%clk 0:02:09]}  Bxd3 {[%clk 0:00:03]} 27. Nxd3 {[%clk 0:01:52]}  Rxc2 {[%clk 0:00:03]} 28. Be3 {[%clk 0:01:43]}  g6 {[%clk 0:00:02]} 29. h7+ {[%clk 0:01:42]}  Kh8 {[%clk 0:00:02]} 30. Nf4 {[%clk 0:01:42]}  Qf5 {[%clk 0:00:01]} 31. Nxg6+ {[%clk 0:01:42]}  Kg7 {[%clk 0:00:01]} 32. Nxf8+ {[%clk 0:01:41]}  Kxf8 {[%clk 0:00:01]} 33. h8=Q+ {[%clk 0:01:41]} 1-0


[Site "https://www.chess.com"]

[Event "Titled Tuesday Blitz August 09 Late 2022"]
[White "Esipenko, Andrey"]
[Black "Paravyan, David"]
[WhiteFideId "24175439"]
[BlackFideId "4194985"]
[WhiteElo "2619"]
[BlackElo "2569"]
[Result "1-0"]
[Round "11"]
[TimeControl "180+1"]
[Date "2022.08.09"]
[WhiteClock "0:00:24"]
[BlackClock "0:00:01"]

1. e4 {[%clk 0:03:00]}  e5 {[%clk 0:02:59]} 2. Nf3 {[%clk 0:03:01]}  Nf6 {[%clk 0:03:00]} 3. Nc3 {[%clk 0:03:00]}  Nc6 {[%clk 0:03:00]} 4. d4 {[%clk 0:03:01]}  exd4 {[%clk 0:03:01]} 5. Nxd4 {[%clk 0:03:01]}  Bb4 {[%clk 0:03:02]} 6. Nxc6 {[%clk 0:03:01]}  bxc6 {[%clk 0:03:03]} 7. Bd3 {[%clk 0:03:01]}  O-O {[%clk 0:03:03]} 8. O-O {[%clk 0:03:01]}  d5 {[%clk 0:03:04]} 9. exd5 {[%clk 0:03:01]}  Bg4 {[%clk 0:03:05]} 10. f3 {[%clk 0:02:58]}  Bh5 {[%clk 0:03:05]} 11. dxc6 {[%clk 0:02:59]}  Qd4+ {[%clk 0:03:05]} 12. Kh1 {[%clk 0:02:59]}  Bxc3 {[%clk 0:03:06]} 13. bxc3 {[%clk 0:02:58]}  Qxc3 {[%clk 0:03:07]} 14. Bf4 {[%clk 0:02:55]}  Qxc6 {[%clk 0:03:05]} 15. Qe1 {[%clk 0:02:40]}  Bg6 {[%clk 0:03:02]} 16. Qa5 {[%clk 0:02:18]}  Bxd3 {[%clk 0:02:58]} 17. cxd3 {[%clk 0:02:17]}  Qd5 {[%clk 0:02:55]} 18. Qxc7 {[%clk 0:02:12]}  Rfc8 {[%clk 0:02:56]} 19. Qe5 {[%clk 0:02:06]}  Rc2 {[%clk 0:02:52]} 20. Rfc1 {[%clk 0:01:53]}  Rxc1+ {[%clk 0:02:27]} 21. Rxc1 {[%clk 0:01:52]}  Re8 {[%clk 0:02:24]} 22. Qxd5 {[%clk 0:01:47]}  Nxd5 {[%clk 0:02:25]} 23. Bd2 {[%clk 0:01:47]}  f6 {[%clk 0:02:25]} 24. Kg1 {[%clk 0:01:48]}  Re2 {[%clk 0:02:08]} 25. Rc2 {[%clk 0:01:48]}  Ne3 {[%clk 0:01:36]} 26. Rc8+ {[%clk 0:01:47]}  Kf7 {[%clk 0:01:36]} 27. Bxe3 {[%clk 0:01:36]}  Rxe3 {[%clk 0:01:37]} 28. Rd8 {[%clk 0:01:36]}  Re2 {[%clk 0:01:22]} 29. Rd7+ {[%clk 0:01:34]}  Kg6 {[%clk 0:01:23]} 30. Rxa7 {[%clk 0:01:35]}  Rd2 {[%clk 0:01:23]} 31. Ra3 {[%clk 0:01:23]}  Kg5 {[%clk 0:01:23]} 32. h3 {[%clk 0:01:19]}  h5 {[%clk 0:01:23]} 33. Kh2 {[%clk 0:01:08]}  h4 {[%clk 0:01:23]} 34. Ra4 {[%clk 0:01:09]}  f5 {[%clk 0:00:54]} 35. f4+ {[%clk 0:01:03]}  Kh5 {[%clk 0:00:38]} 36. Ra5 {[%clk 0:00:46]}  g6 {[%clk 0:00:28]} 37. Ra8 {[%clk 0:00:38]}  Kh6 {[%clk 0:00:28]} 38. a4 {[%clk 0:00:36]}  Rxd3 {[%clk 0:00:26]} 39. a5 {[%clk 0:00:37]}  Rd1 {[%clk 0:00:20]} 40. a6 {[%clk 0:00:35]}  Ra1 {[%clk 0:00:19]} 41. g4 {[%clk 0:00:28]}  Ra2+ {[%clk 0:00:12]} 42. Kg1 {[%clk 0:00:26]}  Ra4 {[%clk 0:00:09]} 43. gxf5 {[%clk 0:00:23]}  gxf5 {[%clk 0:00:09]} 44. a7 {[%clk 0:00:23]}  Kg7 {[%clk 0:00:06]} 45. Kg2 {[%clk 0:00:23]}  Ra3 {[%clk 0:00:05]} 46. Kf2 {[%clk 0:00:23]}  Kh7 {[%clk 0:00:05]} 47. Ke2 {[%clk 0:00:23]}  Kg7 {[%clk 0:00:04]} 48. Kd2 {[%clk 0:00:23]}  Kh7 {[%clk 0:00:04]} 49. Kc2 {[%clk 0:00:24]}  Kg7 {[%clk 0:00:04]} 50. Kb2 {[%clk 0:00:24]}  Ra6 {[%clk 0:00:04]} 51. Kb3 {[%clk 0:00:25]}  Ra1 {[%clk 0:00:03]} 52. Kc4 {[%clk 0:00:25]}  Ra5 {[%clk 0:00:02]} 53. Kb4 {[%clk 0:00:25]}  Ra1 {[%clk 0:00:02]} 54. Kc5 {[%clk 0:00:26]}  Ra4 {[%clk 0:00:01]} 55. Kd5 {[%clk 0:00:24]}  Kh7 {[%clk 0:00:01]} 56. Ke6 {[%clk 0:00:24]} 1-0


[Site "https://www.chess.com"]

[Event "Titled Tuesday Blitz August 09 Late 2022"]
[White "Goncalves, Davi Sulzbacher"]
[Black "Bartholomew, John"]
[WhiteFideId "2154510"]
[BlackFideId "2019353"]
[WhiteElo "2107"]
[BlackElo "2741"]
[Result "0-1"]
[Round "11"]
[TimeControl "180+1"]
[Date "2022.08.09"]
[WhiteClock "0:00:20"]
[BlackClock "0:00:45"]

1. d4 {[%clk 0:03:00]}  d5 {[%clk 0:02:57]} 2. Nf3 {[%clk 0:02:59]}  Nf6 {[%clk 0:02:56]} 3. c4 {[%clk 0:02:55]}  c6 {[%clk 0:02:56]} 4. Nc3 {[%clk 0:02:55]}  dxc4 {[%clk 0:02:54]} 5. a4 {[%clk 0:02:54]}  Bf5 {[%clk 0:02:53]} 6. e3 {[%clk 0:02:53]}  e6 {[%clk 0:02:53]} 7. Bxc4 {[%clk 0:02:53]}  Bb4 {[%clk 0:02:53]} 8. O-O {[%clk 0:02:52]}  Nbd7 {[%clk 0:02:53]} 9. Qe2 {[%clk 0:02:52]}  Bg6 {[%clk 0:02:53]} 10. e4 {[%clk 0:02:51]}  Bxc3 {[%clk 0:02:53]} 11. bxc3 {[%clk 0:02:52]}  Nxe4 {[%clk 0:02:53]} 12. Ba3 {[%clk 0:02:51]}  Qc7 {[%clk 0:02:49]} 13. Qe3 {[%clk 0:02:32]}  a6 {[%clk 0:02:28]} 14. Rfe1 {[%clk 0:01:34]}  c5 {[%clk 0:01:47]} 15. Bd3 {[%clk 0:01:25]}  Nef6 {[%clk 0:01:23]} 16. dxc5 {[%clk 0:01:23]}  Bxd3 {[%clk 0:01:13]} 17. Qxd3 {[%clk 0:01:22]}  Nxc5 {[%clk 0:01:11]} 18. Qc4 {[%clk 0:01:21]}  Rc8 {[%clk 0:01:08]} 19. Ng5 {[%clk 0:00:44]}  O-O {[%clk 0:00:55]} 20. Qh4 {[%clk 0:00:39]}  h6 {[%clk 0:00:48]} 21. Re5 {[%clk 0:00:20]}  Qxe5 {[%clk 0:00:45]} 0-1


[Site "https://www.chess.com"]

[Event "Titled Tuesday Blitz August 09 Late 2022"]
[White "Hambleton, Aman"]
[Black "Przybylski, Wojciech"]
[WhiteFideId "2606577"]
[BlackFideId "1117599"]
[WhiteElo "2538"]
[BlackElo "2133"]
[Result "1-0"]
[Round "11"]
[TimeControl "180+1"]
[Date "2022.08.09"]
[WhiteClock "0:00:22"]
[BlackClock "0:00:22"]

1. d4 {[%clk 0:03:00]}  Nf6 {[%clk 0:02:55]} 2. Bf4 {[%clk 0:03:01]}  e6 {[%clk 0:02:53]} 3. e3 {[%clk 0:03:01]}  b6 {[%clk 0:02:53]} 4. Nf3 {[%clk 0:03:01]}  Bb7 {[%clk 0:02:53]} 5. h3 {[%clk 0:03:02]}  Be7 {[%clk 0:02:53]} 6. Bd3 {[%clk 0:02:56]}  O-O {[%clk 0:02:53]} 7. O-O {[%clk 0:02:55]}  c5 {[%clk 0:02:53]} 8. c3 {[%clk 0:02:55]}  Nc6 {[%clk 0:02:52]} 9. Bh2 {[%clk 0:02:52]}  Re8 {[%clk 0:02:52]} 10. Nbd2 {[%clk 0:02:51]}  d6 {[%clk 0:02:50]} 11. Qe2 {[%clk 0:02:50]}  a5 {[%clk 0:02:47]} 12. a4 {[%clk 0:02:48]}  Qc7 {[%clk 0:02:45]} 13. Nc4 {[%clk 0:02:47]}  Rad8 {[%clk 0:02:43]} 14. Rac1 {[%clk 0:02:17]}  Nb8 {[%clk 0:02:42]} 15. e4 {[%clk 0:02:10]}  Nbd7 {[%clk 0:02:37]} 16. e5 {[%clk 0:01:36]}  dxe5 {[%clk 0:02:36]} 17. dxe5 {[%clk 0:01:33]}  Nd5 {[%clk 0:02:32]} 18. Rfe1 {[%clk 0:00:52]}  Bc6 {[%clk 0:02:27]} 19. Bc2 {[%clk 0:00:37]}  g6 {[%clk 0:02:26]} 20. Rcd1 {[%clk 0:00:32]}  Rf8 {[%clk 0:02:13]} 21. Nfd2 {[%clk 0:00:26]}  b5 {[%clk 0:02:05]} 22. Nd6 {[%clk 0:00:06]}  bxa4 {[%clk 0:01:59]} 23. N2e4 {[%clk 0:00:04]}  Rb8 {[%clk 0:01:53]} 24. Bd3 {[%clk 0:00:05]}  Qb6 {[%clk 0:01:38]} 25. Rd2 {[%clk 0:00:05]}  Qc7 {[%clk 0:01:15]} 26. Bg3 {[%clk 0:00:05]}  N7b6 {[%clk 0:00:56]} 27. Red1 {[%clk 0:00:05]}  Ba8 {[%clk 0:00:50]} 28. Qf3 {[%clk 0:00:05]}  Nd7 {[%clk 0:00:46]} 29. h4 {[%clk 0:00:05]}  a3 {[%clk 0:00:40]} 30. bxa3 {[%clk 0:00:05]}  Nxc3 {[%clk 0:00:41]} 31. h5 {[%clk 0:00:04]}  Nxe4 {[%clk 0:00:38]} 32. Bxe4 {[%clk 0:00:03]}  Bxe4 {[%clk 0:00:30]} 33. Qxe4 {[%clk 0:00:04]}  Nb6 {[%clk 0:00:29]} 34. hxg6 {[%clk 0:00:03]}  hxg6 {[%clk 0:00:29]} 35. Qg4 {[%clk 0:00:03]}  Kg7 {[%clk 0:00:27]} 36. Bh4 {[%clk 0:00:03]}  Bxh4 {[%clk 0:00:24]} 37. Qxh4 {[%clk 0:00:04]}  Nd7 {[%clk 0:00:21]} 38. Nf5+ {[%clk 0:00:03]}  exf5 {[%clk 0:00:20]} 39. Rxd7 {[%clk 0:00:03]}  Qxe5 {[%clk 0:00:20]} 40. R7d3 {[%clk 0:00:03]}  Qf6 {[%clk 0:00:20]} 41. Qg3 {[%clk 0:00:02]}  c4 {[%clk 0:00:20]} 42. Rc3 {[%clk 0:00:03]}  Rbc8 {[%clk 0:00:20]} 43. Rdc1 {[%clk 0:00:03]}  Qd4 {[%clk 0:00:18]} 44. Qf3 {[%clk 0:00:02]}  Rfd8 {[%clk 0:00:17]} 45. g3 {[%clk 0:00:03]}  Rc5 {[%clk 0:00:17]} 46. Qe2 {[%clk 0:00:03]}  Rdc8 {[%clk 0:00:16]} 47. Qc2 {[%clk 0:00:03]}  Qd5 {[%clk 0:00:16]} 48. Qe2 {[%clk 0:00:03]}  Qd4 {[%clk 0:00:16]} 49. Qf3 {[%clk 0:00:03]}  R5c6 {[%clk 0:00:15]} 50. Qe2 {[%clk 0:00:03]}  R8c7 {[%clk 0:00:16]} 51. Qf3 {[%clk 0:00:03]}  Rc5 {[%clk 0:00:16]} 52. R1c2 {[%clk 0:00:04]}  Rc8 {[%clk 0:00:16]} 53. Rc1 {[%clk 0:00:04]}  R5c7 {[%clk 0:00:15]} 54. R1c2 {[%clk 0:00:04]}  Rc6 {[%clk 0:00:15]} 55. Rc1 {[%clk 0:00:05]}  a4 {[%clk 0:00:15]} 56. Qe2 {[%clk 0:00:04]}  Re6 {[%clk 0:00:14]} 57. Qc2 {[%clk 0:00:04]}  Re4 {[%clk 0:00:14]} 58. Qxa4 {[%clk 0:00:04]}  Rc7 {[%clk 0:00:13]} 59. Qa5 {[%clk 0:00:04]}  Rc5 {[%clk 0:00:12]} 60. Qa7 {[%clk 0:00:03]}  Rg4 {[%clk 0:00:11]} 61. Qb8 {[%clk 0:00:02]}  f4 {[%clk 0:00:10]} 62. Kf1 {[%clk 0:00:02]}  fxg3 {[%clk 0:00:10]} 63. Rxg3 {[%clk 0:00:03]}  Rxg3 {[%clk 0:00:10]} 64. Qxg3 {[%clk 0:00:04]}  Rf5 {[%clk 0:00:09]} 65. Rc2 {[%clk 0:00:02]}  Qa1+ {[%clk 0:00:08]} 66. Kg2 {[%clk 0:00:02]}  Qb1 {[%clk 0:00:06]} 67. Rxc4 {[%clk 0:00:02]}  Qd1 {[%clk 0:00:04]} 68. Qc3+ {[%clk 0:00:02]}  Kh7 {[%clk 0:00:03]} 69. Rh4+ {[%clk 0:00:02]}  Rh5 {[%clk 0:00:04]} 70. Rxh5+ {[%clk 0:00:02]}  gxh5 {[%clk 0:00:04]} 71. Qc5 {[%clk 0:00:02]}  Qg4+ {[%clk 0:00:04]} 72. Kh2 {[%clk 0:00:02]}  Qh4+ {[%clk 0:00:04]} 73. Kg2 {[%clk 0:00:02]}  Qg4+ {[%clk 0:00:05]} 74. Kf1 {[%clk 0:00:02]}  Qd1+ {[%clk 0:00:05]} 75. Kg2 {[%clk 0:00:03]}  Qd3 {[%clk 0:00:05]} 76. Qe3 {[%clk 0:00:02]}  Qf5 {[%clk 0:00:05]} 77. f3 {[%clk 0:00:01]}  h4 {[%clk 0:00:05]} 78. Qe4 {[%clk 0:00:02]}  Kg6 {[%clk 0:00:03]} 79. a4 {[%clk 0:00:02]}  Kf6 {[%clk 0:00:02]} 80. Qxf5+ {[%clk 0:00:03]}  Kxf5 {[%clk 0:00:03]} 81. a5 {[%clk 0:00:04]}  Ke5 {[%clk 0:00:03]} 82. a6 {[%clk 0:00:05]}  Kd6 {[%clk 0:00:04]} 83. a7 {[%clk 0:00:06]}  Kc7 {[%clk 0:00:05]} 84. a8=Q {[%clk 0:00:06]}  Kb6 {[%clk 0:00:06]} 85. Qh8 {[%clk 0:00:07]}  Kc5 {[%clk 0:00:07]} 86. Qxh4 {[%clk 0:00:08]}  Kd6 {[%clk 0:00:07]} 87. Qa4 {[%clk 0:00:08]}  Ke6 {[%clk 0:00:08]} 88. Qa3 {[%clk 0:00:09]}  Kf5 {[%clk 0:00:09]} 89. Qa2 {[%clk 0:00:10]}  f6 {[%clk 0:00:09]} 90. Qa1 {[%clk 0:00:10]}  Kg6 {[%clk 0:00:10]} 91. Kf2 {[%clk 0:00:11]}  Kf7 {[%clk 0:00:10]} 92. Qa4 {[%clk 0:00:12]}  Kg6 {[%clk 0:00:11]} 93. Kg3 {[%clk 0:00:13]}  f5 {[%clk 0:00:11]} 94. Kf4 {[%clk 0:00:13]}  Kh5 {[%clk 0:00:12]} 95. Qa5 {[%clk 0:00:13]}  Kh4 {[%clk 0:00:13]} 96. Kxf5 {[%clk 0:00:13]}  Kg3 {[%clk 0:00:13]} 97. f4 {[%clk 0:00:14]}  Kf3 {[%clk 0:00:13]} 98. Ke5 {[%clk 0:00:15]}  Kg3 {[%clk 0:00:14]} 99. f5 {[%clk 0:00:15]}  Kg4 {[%clk 0:00:15]} 100. f6 {[%clk 0:00:16]}  Kg5 {[%clk 0:00:16]} 101. Ke6+ {[%clk 0:00:16]}  Kg6 {[%clk 0:00:17]} 102. Qc7 {[%clk 0:00:16]}  Kh6 {[%clk 0:00:17]} 103. Qg7+ {[%clk 0:00:16]}  Kh5 {[%clk 0:00:17]} 104. f7 {[%clk 0:00:17]}  Kh4 {[%clk 0:00:18]} 105. Ke7 {[%clk 0:00:17]}  Kh3 {[%clk 0:00:19]} 106. Kf8 {[%clk 0:00:18]}  Kh2 {[%clk 0:00:20]} 107. Kg8 {[%clk 0:00:19]}  Kh3 {[%clk 0:00:20]} 108. Kh7 {[%clk 0:00:19]}  Kh2 {[%clk 0:00:21]} 109. f8=Q {[%clk 0:00:20]}  Kh1 {[%clk 0:00:22]} 110. Qfh8 {[%clk 0:00:21]}  Kh2 {[%clk 0:00:22]} 111. Kg8# {[%clk 0:00:22]} 1-0


[Site "https://www.chess.com"]

[Event "Titled Tuesday Blitz August 09 Late 2022"]
[White "Janaszak, Dawid"]
[Black "Xie, Luke"]
[WhiteFideId "1119206"]
[BlackFideId "2099667"]
[WhiteElo "2165"]
[BlackElo "2441"]
[Result "1/2-1/2"]
[Round "11"]
[TimeControl "180+1"]
[Date "2022.08.09"]
[WhiteClock "0:00:25"]
[BlackClock "0:00:06"]

1. d4 {[%clk 0:03:00]}  d5 {[%clk 0:02:59]} 2. Bf4 {[%clk 0:03:00]}  c5 {[%clk 0:02:59]} 3. e4 {[%clk 0:02:59]}  cxd4 {[%clk 0:02:58]} 4. Qxd4 {[%clk 0:02:55]}  Nc6 {[%clk 0:02:48]} 5. Qxd5 {[%clk 0:02:49]}  Qxd5 {[%clk 0:02:46]} 6. exd5 {[%clk 0:02:48]}  Nb4 {[%clk 0:02:47]} 7. Na3 {[%clk 0:02:39]}  Nxd5 {[%clk 0:02:45]} 8. O-O-O {[%clk 0:02:39]}  e6 {[%clk 0:02:33]} 9. Bb5+ {[%clk 0:02:38]}  Bd7 {[%clk 0:02:16]} 10. Bxd7+ {[%clk 0:02:31]}  Kxd7 {[%clk 0:02:17]} 11. c4 {[%clk 0:02:26]}  Bxa3 {[%clk 0:02:09]} 12. cxd5 {[%clk 0:02:26]}  Rc8+ {[%clk 0:02:09]} 13. Kb1 {[%clk 0:02:25]}  Bc5 {[%clk 0:02:07]} 14. dxe6+ {[%clk 0:02:23]}  Kxe6 {[%clk 0:02:07]} 15. Nf3 {[%clk 0:02:23]}  Kf5 {[%clk 0:01:39]} 16. Rd5+ {[%clk 0:02:12]}  Kxf4 {[%clk 0:01:34]} 17. Rc1 {[%clk 0:02:11]}  Nf6 {[%clk 0:00:55]} 18. Rdxc5 {[%clk 0:01:50]}  Rxc5 {[%clk 0:00:55]} 19. Rxc5 {[%clk 0:01:51]}  Rd8 {[%clk 0:00:50]} 20. Kc1 {[%clk 0:01:36]}  b6 {[%clk 0:00:45]} 21. Rc6 {[%clk 0:01:31]}  Rd7 {[%clk 0:00:36]} 22. a4 {[%clk 0:01:24]}  Ne4 {[%clk 0:00:35]} 23. Rc4 {[%clk 0:01:21]}  f5 {[%clk 0:00:20]} 24. Ne1 {[%clk 0:01:21]}  Ke5 {[%clk 0:00:20]} 25. f3 {[%clk 0:01:14]}  Nd2 {[%clk 0:00:19]} 26. f4+ {[%clk 0:01:09]}  Kf6 {[%clk 0:00:17]} 27. Rc6+ {[%clk 0:01:08]}  Kf7 {[%clk 0:00:17]} 28. Kc2 {[%clk 0:01:06]}  Nf1 {[%clk 0:00:17]} 29. Nf3 {[%clk 0:01:05]}  Ne3+ {[%clk 0:00:17]} 30. Kb3 {[%clk 0:01:03]}  Ke7 {[%clk 0:00:17]} 31. Ne5 {[%clk 0:01:02]}  Rb7 {[%clk 0:00:17]} 32. g3 {[%clk 0:01:00]}  Nf1 {[%clk 0:00:17]} 33. Rc2 {[%clk 0:00:57]}  Kf6 {[%clk 0:00:14]} 34. Re2 {[%clk 0:00:56]}  Rc7 {[%clk 0:00:14]} 35. Nc4 {[%clk 0:00:54]}  Re7 {[%clk 0:00:13]} 36. Rf2 {[%clk 0:00:51]}  Ne3 {[%clk 0:00:13]} 37. Ne5 {[%clk 0:00:51]}  Ng4 {[%clk 0:00:13]} 38. Nxg4+ {[%clk 0:00:48]}  fxg4 {[%clk 0:00:14]} 39. Kc4 {[%clk 0:00:47]}  Rc7+ {[%clk 0:00:14]} 40. Kb4 {[%clk 0:00:45]}  Rc5 {[%clk 0:00:13]} 41. Rd2 {[%clk 0:00:45]}  a5+ {[%clk 0:00:13]} 42. Kb3 {[%clk 0:00:45]}  Rc6 {[%clk 0:00:13]} 43. Rd5 {[%clk 0:00:43]}  g6 {[%clk 0:00:12]} 44. Rg5 {[%clk 0:00:42]}  h5 {[%clk 0:00:12]} 45. Rd5 {[%clk 0:00:42]}  Re6 {[%clk 0:00:12]} 46. Rb5 {[%clk 0:00:39]}  Kg7 {[%clk 0:00:10]} 47. Kc4 {[%clk 0:00:37]}  Re2 {[%clk 0:00:10]} 48. Rxb6 {[%clk 0:00:35]}  Rxh2 {[%clk 0:00:10]} 49. b4 {[%clk 0:00:36]}  axb4 {[%clk 0:00:10]} 50. a5 {[%clk 0:00:36]}  Ra2 {[%clk 0:00:10]} 51. Kb3 {[%clk 0:00:36]}  Rxa5 {[%clk 0:00:10]} 52. Kxb4 {[%clk 0:00:36]}  Ra2 {[%clk 0:00:10]} 53. Kc4 {[%clk 0:00:33]}  Rf2 {[%clk 0:00:09]} 54. Kd4 {[%clk 0:00:32]}  Rf3 {[%clk 0:00:10]} 55. Ke5 {[%clk 0:00:33]}  Rxg3 {[%clk 0:00:10]} 56. Rb7+ {[%clk 0:00:33]}  Kh6 {[%clk 0:00:09]} 57. f5 {[%clk 0:00:34]}  gxf5 {[%clk 0:00:06]} 58. Kf6 {[%clk 0:00:32]}  Ra3 {[%clk 0:00:06]} 59. Rb8 {[%clk 0:00:31]}  Ra6+ {[%clk 0:00:06]} 60. Kxf5 {[%clk 0:00:31]}  Rg6 {[%clk 0:00:05]} 61. Rh8+ {[%clk 0:00:26]}  Kg7 {[%clk 0:00:05]} 62. Rxh5 {[%clk 0:00:26]}  g3 {[%clk 0:00:05]} 63. Rh1 {[%clk 0:00:27]}  g2 {[%clk 0:00:06]} 64. Rg1 {[%clk 0:00:27]}  Kf7 {[%clk 0:00:06]} 65. Kf4 {[%clk 0:00:27]}  Rf6+ {[%clk 0:00:06]} 66. Kg3 {[%clk 0:00:26]}  Rg6+ {[%clk 0:00:06]} 67. Kf2 {[%clk 0:00:25]} 1/2-1/2


[Site "https://www.chess.com"]

[Event "Titled Tuesday Blitz August 09 Late 2022"]
[White "Kamsky, Gata"]
[Black "Bilych, Olexiy"]
[WhiteFideId "2000024"]
[BlackFideId "14156504"]
[WhiteElo "2666"]
[BlackElo "2157"]
[Result "1-0"]
[Round "11"]
[TimeControl "180+1"]
[Date "2022.08.09"]
[WhiteClock "0:00:21"]
[BlackClock "0:00:03"]

1. d4 {[%clk 0:03:00]}  Nf6 {[%clk 0:02:59]} 2. Nf3 {[%clk 0:02:58]}  d5 {[%clk 0:02:59]} 3. Bf4 {[%clk 0:02:53]}  e6 {[%clk 0:02:58]} 4. e3 {[%clk 0:02:53]}  Bd6 {[%clk 0:02:58]} 5. Nbd2 {[%clk 0:02:53]}  O-O {[%clk 0:02:57]} 6. c3 {[%clk 0:02:52]}  c5 {[%clk 0:02:57]} 7. dxc5 {[%clk 0:02:52]}  Bxc5 {[%clk 0:02:55]} 8. Bd3 {[%clk 0:02:52]}  Qe7 {[%clk 0:02:51]} 9. O-O {[%clk 0:02:51]}  Nc6 {[%clk 0:02:50]} 10. e4 {[%clk 0:02:51]}  h6 {[%clk 0:02:36]} 11. Re1 {[%clk 0:02:33]}  d4 {[%clk 0:02:17]} 12. cxd4 {[%clk 0:02:23]}  Nxd4 {[%clk 0:02:16]} 13. e5 {[%clk 0:02:23]}  Nd5 {[%clk 0:02:08]} 14. Bg3 {[%clk 0:02:19]}  Bd7 {[%clk 0:01:22]} 15. Bh4 {[%clk 0:01:48]}  Qe8 {[%clk 0:00:55]} 16. Ne4 {[%clk 0:01:46]}  Be7 {[%clk 0:00:35]} 17. Nf6+ {[%clk 0:01:24]}  Bxf6 {[%clk 0:00:32]} 18. exf6 {[%clk 0:01:22]}  Nxf3+ {[%clk 0:00:33]} 19. Qxf3 {[%clk 0:01:22]}  g6 {[%clk 0:00:33]} 20. Bg3 {[%clk 0:01:13]}  Bc6 {[%clk 0:00:26]} 21. Be5 {[%clk 0:01:13]}  Kh7 {[%clk 0:00:23]} 22. Qh3 {[%clk 0:01:10]}  Rh8 {[%clk 0:00:23]} 23. Re4 {[%clk 0:01:08]}  Kg8 {[%clk 0:00:22]} 24. Rg4 {[%clk 0:01:05]}  Rd8 {[%clk 0:00:20]} 25. Qg3 {[%clk 0:01:03]}  Kh7 {[%clk 0:00:10]} 26. a3 {[%clk 0:00:57]}  Bb5 {[%clk 0:00:08]} 27. Be4 {[%clk 0:00:56]}  Bc6 {[%clk 0:00:08]} 28. h4 {[%clk 0:00:54]}  Nb6 {[%clk 0:00:09]} 29. Bd3 {[%clk 0:00:51]}  Rxd3 {[%clk 0:00:08]} 30. Qxd3 {[%clk 0:00:51]}  Qd7 {[%clk 0:00:08]} 31. Qxd7 {[%clk 0:00:48]}  Bxd7 {[%clk 0:00:09]} 32. Rc1 {[%clk 0:00:46]}  Bc6 {[%clk 0:00:09]} 33. h5 {[%clk 0:00:46]}  g5 {[%clk 0:00:08]} 34. f4 {[%clk 0:00:45]}  Rg8 {[%clk 0:00:09]} 35. fxg5 {[%clk 0:00:44]}  Rxg5 {[%clk 0:00:09]} 36. Rxg5 {[%clk 0:00:45]}  hxg5 {[%clk 0:00:10]} 37. Kf2 {[%clk 0:00:44]}  Nd5 {[%clk 0:00:09]} 38. g4 {[%clk 0:00:44]}  Kh6 {[%clk 0:00:06]} 39. b4 {[%clk 0:00:43]}  a6 {[%clk 0:00:07]} 40. Rc5 {[%clk 0:00:41]}  Kh7 {[%clk 0:00:06]} 41. Bd6 {[%clk 0:00:34]}  Kg8 {[%clk 0:00:06]} 42. Be5 {[%clk 0:00:34]}  Kh7 {[%clk 0:00:06]} 43. Kg3 {[%clk 0:00:33]}  Kh6 {[%clk 0:00:06]} 44. Bb2 {[%clk 0:00:27]}  Kh7 {[%clk 0:00:06]} 45. Bc1 {[%clk 0:00:25]}  Nxf6 {[%clk 0:00:05]} 46. Rxc6 {[%clk 0:00:21]}  bxc6 {[%clk 0:00:05]} 47. Bxg5 {[%clk 0:00:21]}  Ne4+ {[%clk 0:00:05]} 48. Kf4 {[%clk 0:00:21]}  Nd6 {[%clk 0:00:04]} 49. a4 {[%clk 0:00:20]}  Nc4 {[%clk 0:00:03]} 50. Ke4 {[%clk 0:00:20]}  Nb2 {[%clk 0:00:03]} 51. a5 {[%clk 0:00:20]}  Nc4 {[%clk 0:00:03]} 52. Kd4 {[%clk 0:00:20]}  Nd6 {[%clk 0:00:02]} 53. Bf4 {[%clk 0:00:20]}  Nb5+ {[%clk 0:00:01]} 54. Kc5 {[%clk 0:00:21]}  Nc3 {[%clk 0:00:02]} 55. Kxc6 {[%clk 0:00:21]}  Nd5 {[%clk 0:00:02]} 56. Bd2 {[%clk 0:00:21]}  Nf6 {[%clk 0:00:03]} 57. b5 {[%clk 0:00:21]}  axb5 {[%clk 0:00:03]} 58. a6 {[%clk 0:00:21]} 1-0


[Site "https://www.chess.com"]